bitfinex-derivatives/quotes_ETHF0:USTF0_20251103
["timestamp","ask_amount","ask_price","bid_price","bid_amount"]
[1762209442019,0.00265294,3591.0,3590.7,0.50141]
[1762209442222,0.5014,3590.9,3590.3,0.385]
[1762209442423,0.50136,3591.1,3590.7,0.50141]
[1762209442724,0.21687921,3592.0,3590.3,0.385]
[1762209442725,1.25309,3592.0,3591.0,0.385]
[1762209442919,0.50135,3591.2,3591.1,0.6336]
[1762209443114,0.50442135,3591.2,3591.1,0.6336]
[1762209443819,0.50442135,3591.2,3591.0,0.385]
[1762209444019,0.50442135,3591.2,3590.3,0.385]
[1762209444020,0.50143,3590.6,3590.3,1.0186]
[1762209444223,0.50138,3591.0,3590.5,0.6336]
[1762209444428,0.00307135,3591.2,3590.8,0.6336]
[1762209444918,0.00307135,3591.2,3591.1,0.6336]
[1762209446920,1.25276,3593.0,3591.9,1.13484]
[1762209447121,0.50122,3592.1,3591.9,0.6336]
[1762209447822,2.5049,3593.9,3591.9,0.6336]
[1762209447823,0.21109779,3594.0,3592.7,0.50113]
[1762209448018,1.25246,3593.8,3593.0,0.6336]
[1762209448218,0.21109779,3594.0,3592.7,0.00278135]
[1762209448219,0.21462449,3594.0,3593.1,0.86627]
[1762209448425,0.21462449,3594.0,3593.2,0.50105]
[1762209448622,0.21462449,3594.0,3593.3,0.50105]
[1762209448826,0.50099,3593.8,3593.4,0.50103]
[1762209449016,0.0035267,3594.0,3593.1,0.3652]
[1762209449221,0.50098,3593.8,3593.3,0.50104]
[1762209449422,0.50098,3593.8,3593.1,0.86627]
[1762209449622,0.0035267,3594.0,3593.5,0.6336]
[1762209449920,0.0035267,3594.0,3592.8,40.8]
[1762209449921,0.50111,3592.9,3592.8,40.8]
[1762209450114,0.50111,3592.9,3592.7,0.00278135]
[1762209450319,0.3506,3593.6,3591.7,0.385]
[1762209450517,0.50122,3592.1,3591.7,0.385]
[1762209450727,0.50122,3592.1,3592.0,0.6336]
[1762209451428,0.50122,3592.1,3592.0,0.63654377]
[1762209453325,0.50122,3592.1,3589.2,12.54058]
[1762209453326,0.1859,3592.0,3590.4,0.3652]
[1762209453526,0.1859,3592.0,3590.4,0.6642]
[1762209453721,0.50133,3591.3,3591.2,0.9988]
[1762209454122,0.20981254,3592.9,3591.8,0.50125]
[1762209454322,0.00258312,3592.8,3592.1,0.6336]
[1762209454528,0.50114,3592.7,3592.1,0.6336]
[1762209454723,0.50115,3592.6,3592.3,0.50119]
[1762209454931,0.50115,3592.6,3592.1,40.8]
[1762209455125,0.50117,3592.5,3592.1,40.8]
[1762209455429,0.5012,3592.3,3592.1,40.8]
[1762209456331,0.50125,3591.9,3591.8,0.002577]
[1762209457339,0.50133,3591.3,3590.8,1.054]
[1762209457541,0.50133,3591.3,3591.2,0.9988]
[1762209458341,0.50133,3591.3,3591.2,1.00230987]
[1762209458737,0.50133,3591.3,3591.2,0.00350987]
[1762209459346,2.50647,3591.6,3590.4,0.3652]
[1762209459634,0.50143,3590.6,3590.4,0.3652]
[1762209459838,1.25362,3590.5,3589.6,0.3652]
[1762209460041,0.50153,3589.9,3589.6,0.3652]
[1762209460341,0.50154,3589.8,3589.7,41.4336]
[1762209460537,0.00241423,3589.9,3589.8,0.6336]
[1762209461036,0.50154,3589.8,3589.6,0.3671506]
[1762209461437,0.50154,3589.8,3589.7,0.6336]
[1762209462238,0.00241423,3589.9,3589.7,0.6336]
[1762209462741,0.50155,3589.8,3589.6,0.5035206]
[1762209463042,0.50155,3589.8,3589.6,0.0019506]
[1762209467241,0.50164,3589.1,3588.9,0.3652]
[1762209467448,0.50165,3589.0,3588.9,0.3652]
[1762209467643,0.50165,3589.0,3588.9,0.86687]
[1762209467946,1.25388,3589.8,3589.1,0.50164]
[1762209468142,0.00241423,3589.9,3589.8,1.11404]
[1762209468440,0.00241423,3589.9,3589.8,1.11704613]
[1762209469846,0.00241423,3589.9,3589.8,41.91704613]
[1762209471644,1.15134423,3589.9,3589.8,0.00300613]
[1762209473046,1.2539,3589.7,3588.9,0.86687]
[1762209473244,0.50164,3589.1,3588.9,0.3652]
[1762209474139,0.50164,3589.1,3588.9,0.3672106]
[1762209474336,0.50164,3589.1,3589.0,0.6125]
[1762209475149,0.50162,3589.3,3589.1,0.50163]
[1762209475649,1.25625423,3589.9,3588.9,0.3672106]
[1762209475945,1.25385,3589.8,3588.9,0.3672106]
[1762209476148,0.00241423,3589.9,3588.9,0.3672106]
[1762209476149,0.50159,3589.4,3589.2,0.50162]
[1762209476348,0.50162,3589.3,3589.2,0.6125]
[1762209476841,0.50165,3589.0,3588.9,0.0020106]
[1762209479844,1.14905,3589.0,3588.9,0.0020106]
[1762209482245,1.43975,3589.8,3588.9,0.0020106]
[1762209482246,1.44205,3590.4,3589.2,0.3732]
[1762209482444,1.25348,3590.9,3589.8,1.48724]
[1762209482643,1.25326,3591.5,3590.2,1.25369]
[1762209482949,0.50136,3591.1,3590.9,0.50138]
[1762209483341,0.6474,3590.5,3588.9,0.0020106]
[1762209483546,0.50159,3589.5,3589.3,0.50161]
[1762209483747,0.50478617,3589.5,3589.3,0.50161]
[1762209484044,0.50478617,3589.5,3589.4,41.4125]
[1762209484245,0.00319617,3589.5,3589.4,41.4125]
[1762209485639,0.50165,3589.0,3588.9,0.0020106]
[1762209487346,0.00319617,3589.5,3588.9,0.0020106]
[1762209487548,0.00319617,3589.5,3589.0,0.50165]
[1762209488143,0.6474,3589.0,3588.9,0.0020106]
[1762209488743,0.6474,3589.0,3588.9,1.06e-05]
[1762209488944,0.6474,3589.0,3587.5,0.3732]
[1762209488945,0.5018,3588.0,3587.5,0.3732]
[1762209489142,0.5018,3588.0,3587.8,0.50181]
[1762209489748,0.50183,3587.8,3587.6,40.8]
[1762209490050,1.25424,3588.7,3587.7,0.50183]
[1762209490255,0.50181,3587.9,3587.6,40.8]
[1762209491255,0.50182,3587.8,3587.6,40.8]
[1762209491456,0.50184,3587.7,3587.5,0.00231796]
[1762209491960,0.50184,3587.7,3587.5,40.80231796]
[1762209492658,0.50184,3587.7,3587.5,0.00231796]
[1762209492861,0.50185,3587.6,3587.5,0.00231796]
[1762209493356,1.14925,3587.6,3587.5,0.00231796]
[1762209494355,0.50202,3586.4,3586.1,0.50206]
[1762209494557,0.50203,3586.4,3585.5,1.25535]
[1762209494859,3.70456,3587.8,3586.1,0.3421]
[1762209495061,1.2547,3587.4,3586.4,0.502]
[1762209495253,0.502,3586.5,3586.4,0.5040954]
[1762209495449,0.502,3586.5,3586.4,0.0020954]
[1762209496060,0.502,3586.5,3586.4,0.5041154]
[1762209496357,0.00340544,3587.4,3586.5,0.502]
[1762209496556,0.00340544,3587.4,3586.6,0.50199]
[1762209496756,0.50197,3586.7,3586.6,0.50199]
[1762209496957,1.25477,3587.2,3586.6,0.50199]
[1762209497156,1.2548,3587.1,3586.4,0.5040954]
[1762209497654,1.2548,3587.1,3586.4,0.0020954]
[1762209497860,0.502,3586.5,3586.4,0.0020954]
[1762209498262,1.0729,3586.5,3586.4,0.0020954]
[1762209498864,0.50211,3585.7,3585.6,41.30213]
[1762209499068,1.25512,3586.2,3585.1,10.587]
[1762209499069,1.25515,3586.1,3585.1,10.587]
[1762209499360,0.5709,3586.1,3585.8,0.50209]
[1762209499660,0.24465818,3586.6,3585.5,40.8]
[1762209499863,0.50202,3586.4,3586.1,0.84416]
[1762209500160,0.50203,3586.4,3586.2,0.50204]
[1762209500353,0.502,3586.6,3585.5,40.80319546]
[1762209500554,0.50202,3586.4,3585.7,1.2553]
[1762209500754,1.25488,3586.9,3585.7,1.25529]
[1762209500952,0.5709,3586.9,3585.7,1.25527]
[1762209501156,0.50195,3587.0,3586.8,0.50196]
[1762209501353,0.00340544,3587.4,3586.9,0.50194]
[1762209501558,0.00340544,3587.4,3586.4,1.25505]
[1762209501559,0.00340544,3587.4,3587.3,0.50189]
[1762209502161,0.00340544,3587.4,3587.3,41.30189]
[1762209502361,0.50528544,3587.4,3587.3,41.30189]
[1762209502860,0.50528544,3587.4,3586.8,0.3421]
[1762209503066,0.00340544,3587.4,3587.3,0.50189]
[1762209503560,0.50528544,3587.4,3587.3,0.50189]
[1762209503763,0.5019,3587.3,3587.2,0.5019]
[1762209504354,0.00340544,3587.4,3587.0,40.8]
[1762209504564,0.00340544,3587.4,3587.2,0.5019]
[1762209504768,0.50189,3587.3,3587.2,0.5019]
[1762209505062,0.00340544,3587.4,3587.3,0.50189]
[1762209505261,0.00340544,3587.4,3587.3,1.11349]
[1762209505461,0.00340544,3587.4,3587.3,11.70749]
[1762209506164,1.2543,3588.6,3588.0,0.50179]
[1762209506357,0.50176,3588.3,3588.0,0.50179]
[1762209506659,1.25397,3589.5,3588.2,0.3421]
[1762209506858,0.3407,3589.6,3588.5,1.25429]
[1762209507165,0.5016,3589.4,3589.2,0.50162]
[1762209507358,0.00216547,3589.6,3589.2,0.50162]
[1762209507559,0.5016,3589.4,3589.2,0.50162]
[1762209507764,0.50161,3589.3,3589.2,0.50162]
[1762209508060,0.50161,3589.3,3588.9,0.3421]
[1762209508252,0.50163,3589.2,3588.9,0.3421]
[1762209508456,0.50161,3589.3,3589.1,0.50164]
[1762209508653,0.50161,3589.3,3589.2,0.50163]
[1762209508854,0.50163,3589.2,3589.0,41.30164]
[1762209509059,0.50158,3589.5,3589.0,40.8]
[1762209509258,0.5016,3589.4,3589.3,0.50161]
[1762209509456,0.50374547,3589.6,3589.4,0.50159]
[1762209509657,0.50374547,3589.6,3589.5,0.50158]
[1762209509859,0.00216547,3589.6,3589.5,0.50158]
[1762209510662,0.50373547,3589.6,3589.0,40.8]
[1762209510866,0.50373547,3589.6,3589.4,0.5016]
[1762209511760,0.50373547,3589.6,3589.3,0.50161]
[1762209511964,0.50373547,3589.6,3589.0,40.8]
[1762209512664,0.00216547,3589.6,3589.1,0.50164]
[1762209512967,0.50163,3589.2,3589.0,40.8]
[1762209513157,1.25397,3589.5,3588.8,10.54]
[1762209513362,1.01751,3588.6,3588.5,0.00227794]
[1762209514068,0.28216547,3589.6,3588.5,0.50398794]
[1762209514363,0.50171,3588.6,3588.5,0.00227794]
[1762209514562,1.18781,3588.6,3588.5,0.00227794]
[1762209514756,0.50183,3587.8,3587.5,0.84396]
[1762209514970,0.50183,3587.8,3587.6,0.50185]
[1762209515171,0.50183,3587.8,3587.7,0.5236]
[1762209515659,0.50181,3587.9,3587.7,1.02544]
[1762209515865,0.50181,3587.9,3587.7,1.02739682]
[1762209517169,0.50182,3587.8,3587.7,1.02739682]
[1762209517570,0.50182,3587.8,3587.7,0.00195682]
[1762209518073,1.01762,3587.8,3587.7,0.00195682]
[1762209519467,1.4246,3588.6,3587.7,0.00195682]
[1762209519468,0.1703,3588.6,3587.7,0.00195682]
[1762209519673,0.50176,3588.3,3587.7,0.00195682]
[1762209519872,0.50177,3588.2,3588.1,0.50178]
[1762209520067,0.1703,3589.2,3588.2,0.50176]
[1762209520279,0.50174,3588.4,3588.2,0.50176]
[1762209520468,0.50172,3588.6,3588.0,0.2959]
[1762209520771,0.50174,3588.4,3588.3,0.50175]
[1762209520965,0.50174,3588.4,3588.0,0.2959]
[1762209521164,0.50175,3588.3,3587.7,10.53595682]
[1762209521370,0.50175,3588.3,3588.2,0.50177]
[1762209521573,0.50174,3588.4,3588.3,0.50175]
[1762209523280,3.824,3588.9,3588.0,0.2959]
[1762209523472,3.824,3589.5,3588.8,0.50167]
[1762209523773,0.50167,3588.9,3588.6,0.2959]
[1762209524174,0.50167,3588.9,3588.8,0.50168]
[1762209526378,0.50165,3589.0,3588.9,0.50166]
[1762209527078,0.50168,3588.9,3588.7,0.50169]
[1762209528279,0.50168,3588.8,3588.7,0.50169]
[1762209528475,4.10616547,3589.6,3588.6,1.55017]
[1762209528782,0.50164,3589.1,3589.0,0.50164]
[1762209529175,0.50161,3589.4,3589.2,0.50161]
[1762209529377,0.28216547,3589.6,3589.2,0.50161]
[1762209529776,0.50161,3589.3,3589.2,0.50161]
[1762209530476,0.28216547,3589.6,3589.2,0.50161]
[1762209530678,0.50161,3589.4,3589.2,0.50161]
[1762209531377,0.28216547,3589.6,3588.9,40.8]
[1762209531680,0.50158,3589.5,3589.4,0.50158]
[1762209532077,0.00216547,3589.6,3589.5,0.50158]
[1762209532377,0.50373547,3589.6,3589.5,0.50158]
[1762209533379,0.50159,3589.5,3589.0,12.00532]
[1762209533582,0.50373547,3589.6,3589.1,1.25411]
[1762209534186,0.00216547,3589.6,3589.5,0.50158]
[1762209534383,0.00216547,3589.6,3589.5,1.28388]
[1762209534582,1.53397,3589.5,3588.7,0.50169]
[1762209534886,0.5017,3588.7,3588.5,0.2902]
[1762209535083,0.5017,3588.7,3588.6,0.50171]
[1762209535783,1.25415,3589.0,3588.5,0.2902]
[1762209536179,0.50171,3588.6,3588.5,0.2902]
[1762209537285,0.5017,3588.7,3588.6,0.5017]
[1762209538186,0.50171,3588.6,3588.5,0.79192]
[1762209538683,1.01551,3588.6,3588.5,0.50172]
[1762209539287,0.50173,3588.5,3588.3,0.50174]
[1762209539689,0.50173,3588.5,3588.4,0.50174]
[1762209540889,0.50171,3588.6,3588.5,0.50172]
[1762209542583,0.50171,3588.6,3588.3,0.50175]
[1762209542790,1.56235,3589.0,3588.1,40.8]
[1762209542991,1.25415,3589.0,3588.5,0.2902]
[1762209543289,0.50168,3588.9,3588.6,0.4921]
[1762209543484,1.53398,3589.5,3588.8,0.4921]
[1762209543691,0.63984902,3589.4,3588.8,0.4921]
[1762209543891,1.53398,3589.5,3588.8,0.4921]
[1762209544187,1.25404,3589.3,3588.8,0.99378]
[1762209544390,0.50167,3588.9,3588.8,0.99378]
[1762209544690,0.50167,3588.9,3588.8,0.4921]
[1762209545091,0.50167,3588.9,3588.8,0.99378]
[1762209545984,1.01543,3589.2,3589.1,0.50164]
[1762209546186,1.25401,3589.4,3588.5,10.7492]
[1762209546389,0.50168,3588.9,3588.8,0.99378]
[1762209547389,0.50166,3589.0,3588.9,0.50166]
[1762209547987,0.50168,3588.9,3588.8,0.50168]
[1762209548987,0.50168,3588.9,3588.8,0.99378]
[1762209549294,1.01546,3589.0,3588.9,0.50166]
[1762209549488,1.01542,3589.3,3589.0,0.2902]
[1762209549688,0.50373547,3589.6,3589.4,0.5016]
[1762209549883,0.50159,3589.5,3589.1,10.458]
[1762209550089,0.00216547,3589.6,3589.4,0.4921]
[1762209550381,0.00216547,3589.6,3589.5,0.7823]
[1762209550789,0.00216547,3589.6,3589.5,1.28389]
[1762209552291,0.00216547,3589.6,3589.5,44.08391487]
[1762209553493,0.00216547,3589.6,3589.5,42.08389]
[1762209553997,0.00216547,3589.6,3589.5,52.53989]
[1762209556898,0.00216547,3589.6,3589.5,11.73989]
[1762209566099,0.5013,3589.3,3589.1,2.00002487]
[1762209566299,0.50166,3589.0,3588.8,8.964]
[1762209566494,0.50167,3588.9,3588.8,9.96248]
[1762209567000,0.50171,3588.6,3588.5,0.787]
[1762209567304,1.00301,3588.6,3588.5,10.448]
[1762209568401,0.50173,3588.5,3588.3,0.50174]
[1762209568702,0.5013,3588.6,3588.0,41.0959]
[1762209568703,0.50175,3588.3,3588.2,10.447]
[1762209569206,1.25417,3588.9,3588.2,10.94876]
[1762209569606,1.25417,3588.9,3588.2,10.447]
[1762209569607,0.50175,3588.3,3588.2,10.447]
[1762209569996,0.50182,3587.8,3587.7,0.00195682]
[1762209570202,0.93712,3587.8,3587.7,0.00195682]
[1762209571704,0.4353,3587.0,3586.9,10.212]
[1762209572710,0.43824417,3587.0,3586.9,0.0035667]
[1762209573112,0.68654417,3587.0,3586.9,0.0035667]
[1762209573307,0.25124417,3587.0,3586.4,10.446]
[1762209573508,0.502,3586.6,3586.4,10.446]
[1762209574310,0.502,3586.6,3586.4,10.44924003]
[1762209574510,0.6633,3586.5,3586.4,0.00324003]
[1762209575912,0.50202,3586.4,3585.5,0.244]
[1762209576114,1.25508,3586.3,3585.5,0.244]
[1762209576312,0.50212,3585.7,3585.5,0.244]
[1762209576606,0.50202,3586.4,3585.0,0.244]
[1762209576607,0.50219,3585.2,3585.0,0.244]
[1762209576814,0.50217,3585.3,3585.0,0.7483323]
[1762209577017,1.25526,3585.8,3585.0,0.2461223]
[1762209577402,0.50215,3585.5,3585.0,0.7483323]
[1762209577616,1.25523,3585.9,3585.0,0.7483323]
[1762209578014,0.4353,3585.1,3585.0,0.0021223]
[1762209578516,0.50219,3585.2,3584.1,0.50233]
[1762209578517,0.93754,3584.8,3584.1,0.50233]
[1762209579019,0.50231,3584.3,3584.0,0.244]
[1762209579316,0.50567906,3584.3,3584.0,0.24760579]
[1762209579615,0.00336906,3584.3,3584.0,0.74995579]
[1762209579812,0.00336906,3584.3,3584.1,0.50233]
[1762209580118,0.00336906,3584.3,3583.2,1.25614]
[1762209580119,1.25593,3583.9,3582.5,0.244]
[1762209580319,1.25599,3583.7,3582.5,0.244]
[1762209580522,0.50251,3582.9,3582.5,0.244]
[1762209580822,0.2483,3584.0,3582.5,0.244]
[1762209580823,0.50253,3582.8,3582.5,0.244]
[1762209581023,0.1997,3583.2,3582.5,0.0031686]
[1762209581319,0.4353,3582.6,3582.5,0.0031686]
[1762209581922,0.4353,3582.1,3581.6,0.50268]
[1762209582123,0.228,3582.6,3581.5,0.74668]
[1762209582320,0.50263,3582.0,3581.5,0.74668]
[1762209582521,0.50263,3582.0,3581.6,0.50268]
[1762209582718,0.228,3582.6,3581.5,0.244]
[1762209582918,1.25599,3583.7,3582.2,0.50259]
[1762209583120,10.1257,3583.2,3582.1,0.50261]
[1762209583327,0.50256,3582.5,3582.0,0.244]
[1762209584030,10.1257,3583.2,3582.1,0.50262]
[1762209584226,0.50256,3582.5,3582.1,0.50262]
[1762209584524,0.50256,3582.5,3581.5,0.506048]
[1762209584828,0.50265,3581.9,3581.6,0.50268]
[1762209585028,0.50265,3581.9,3581.5,0.003358]
[1762209585230,0.50265,3581.9,3581.6,0.50268]
[1762209585626,0.1654,3582.6,3581.6,0.50268]
[1762209585826,0.50263,3582.0,3581.5,0.003358]
[1762209586129,1.42178,3582.6,3581.6,0.50268]
[1762209586130,0.50264,3581.9,3581.6,0.50268]
[1762209586531,0.4035,3581.6,3581.5,0.003358]
[1762209586731,0.4061073,3581.6,3581.5,0.003358]
[1762209587827,0.0026073,3581.6,3581.5,0.003358]
[1762209588228,0.4061073,3581.6,3581.5,0.003358]
[1762209590033,0.9087873,3581.6,3581.5,0.003358]
[1762209591830,0.9087973,3581.6,3581.5,0.003358]
[1762209594633,0.4061073,3581.6,3581.5,0.003358]
[1762209594825,0.9087873,3581.6,3581.5,0.003358]
[1762209595230,0.4061073,3581.6,3581.5,0.506058]
[1762209596436,0.50257,3582.5,3582.3,0.50258]
[1762209596636,0.4035,3582.5,3582.4,0.50258]
[1762209597435,0.40693303,3582.5,3582.4,0.50258]
[1762209598031,0.00343303,3582.5,3582.4,0.92618]
[1762209598237,0.50239,3583.7,3583.0,0.2362]
[1762209598432,0.50239,3583.7,3583.4,0.50242]
[1762209598736,0.4035,3583.5,3583.4,0.50242]
[1762209599129,0.4035,3583.3,3583.2,0.50245]
[1762209599636,0.00265639,3583.5,3583.4,0.4236]
[1762209600236,0.00265639,3583.5,3583.4,0.92604]
[1762209600429,0.26366414,3584.6,3583.7,1.25598]
[1762209600628,0.76593414,3584.6,3584.3,0.50231]
[1762209600827,0.50225,3584.8,3584.4,0.50229]
[1762209601026,0.2483,3585.0,3584.1,1.25584]
[1762209601230,0.2483,3585.0,3584.0,0.2362]
[1762209601231,1.25506,3586.4,3585.1,0.50219]
[1762209601540,0.4035,3585.2,3585.1,0.00227925]
[1762209602136,0.50215,3585.5,3585.1,0.00227925]
[1762209602339,0.50213,3585.6,3585.1,0.00227925]
[1762209602733,0.50215,3585.5,3585.1,0.00227925]
[1762209603137,0.00283275,3586.0,3585.9,0.92569]
[1762209603435,0.00283275,3586.0,3585.9,0.4236]
[1762209603743,0.50187,3587.5,3586.9,0.50193]
[1762209604035,1.19121927,3589.2,3587.4,0.2362]
[1762209604334,0.025,3589.7,3588.9,0.2362]
[1762209604530,0.025,3589.7,3589.6,0.6598]
[1762209604732,0.98254205,3592.0,3591.1,12.53385]
[1762209604928,0.2494,3594.5,3592.7,0.50112]
[1762209605134,0.2494,3593.8,3592.8,51.523]
[1762209605334,0.2494,3593.8,3592.9,0.94411]
[1762209605529,0.2785,3593.5,3592.9,0.94411]
[1762209605734,0.00350461,3593.5,3593.0,0.70660967]
[1762209605934,4.66062776,3593.4,3593.1,0.70660967]
[1762209606133,0.2785,3593.2,3592.9,0.00341073]
[1762209606334,4.66062776,3593.4,3592.9,0.00341073]
[1762209606534,0.00350461,3593.5,3593.0,0.50109]
[1762209606740,0.00350461,3593.5,3593.2,0.50107]
[1762209606934,0.00350461,3593.5,3593.4,0.50104]
[1762209607741,0.00350461,3593.5,3593.2,0.50107]
[1762209608242,0.025,3594.7,3593.6,0.501]
[1762209608541,0.2785,3594.2,3593.6,0.501]
[1762209608741,0.2785,3594.2,3593.1,10.736]
[1762209608946,0.025,3594.7,3593.8,0.50097]
[1762209609138,4.93912776,3594.3,3593.8,11.22897]
[1762209609339,0.2785,3594.3,3593.8,10.728]
[1762209609535,4.93912776,3594.3,3593.8,10.728]
[1762209610334,0.2785,3594.2,3593.8,10.728]
[1762209610734,4.66062776,3594.2,3593.2,0.50106]
[1762209611040,0.2785,3593.8,3593.3,10.725]
[1762209611240,4.93912776,3593.8,3593.4,40.8]
[1762209611441,4.93912776,3593.8,3593.5,10.704]
[1762209612237,4.66062776,3593.8,3593.4,40.8]
[1762209612442,0.2494,3593.6,3592.9,0.00341073]
[1762209612947,0.2785,3593.0,3592.9,40.80341073]
[1762209613451,4.93912776,3593.0,3592.9,0.00341073]
[1762209614342,5.44021776,3593.0,3592.9,0.00341073]
[1762209614746,4.93912776,3593.0,3592.9,0.00341073]
[1762209617253,5.34262776,3593.0,3592.9,0.00341073]
[1762209621456,4.93912776,3593.0,3592.9,0.00341073]
[1762209621851,0.32,3592.4,3590.2,15.04456]
[1762209622053,0.32,3592.4,3590.4,1.25366]
[1762209622054,0.50132,3591.4,3590.4,1.25366]
[1762209622258,0.77982,3591.4,3591.1,0.50136]
[1762209622455,4.66062776,3591.3,3591.1,0.50136]
[1762209622753,0.2785,3591.4,3591.2,0.50135]
[1762209623056,0.00316389,3591.4,3591.3,0.50134]
[1762209625156,0.00316389,3591.4,3591.3,0.68604]
[1762209625351,0.4203,3591.3,3591.2,0.00355529]
[1762209625552,0.50139,3590.9,3590.4,0.50146]
[1762209625746,0.50139,3590.9,3589.9,1.25381]
[1762209625747,0.2785,3590.6,3589.9,1.25381]
[1762209625950,0.2785,3590.6,3590.0,40.8]
[1762209626151,0.32,3590.3,3590.0,40.8]
[1762209626456,0.32,3590.3,3590.1,0.5015]
[1762209626646,5.48210776,3590.3,3590.0,41.30366454]
[1762209627054,5.48210776,3590.3,3590.1,0.5015]
[1762209627354,5.48210776,3590.3,3590.0,40.80214454]
[1762209627553,4.98062776,3590.3,3590.1,0.50149]
[1762209627956,4.98062776,3590.3,3590.0,40.80214454]
[1762209628255,0.2785,3590.1,3590.0,41.30365454]
[1762209628650,0.82148,3590.3,3590.0,41.30365454]
[1762209628852,0.2785,3590.1,3590.0,41.30365454]
[1762209629262,0.32,3590.3,3590.2,0.50149]
[1762209629455,4.98062776,3590.3,3590.2,0.50149]
[1762209629762,0.50139,3590.9,3590.6,0.50143]
[1762209629958,4.66062776,3590.9,3590.7,0.50141]
[1762209630453,4.93912776,3590.8,3590.7,0.50141]
[1762209630650,4.93912776,3590.8,3590.6,0.50143]
[1762209630858,4.66062776,3590.8,3590.6,0.50143]
[1762209631056,4.66062776,3590.8,3590.7,0.50142]
[1762209631457,0.3076,3590.4,3590.2,0.73527406]
[1762209631656,0.2785,3590.3,3590.1,0.5015]
[1762209631861,4.93912776,3590.3,3590.1,0.5015]
[1762209632062,4.93912776,3590.3,3590.2,40.8]
[1762209632263,4.93912776,3590.3,3590.2,41.53527406]
[1762209632663,4.93912776,3590.3,3590.2,42.03676406]
[1762209633060,4.93912776,3590.3,3590.2,1.23676406]
[1762209633259,4.93912776,3590.3,3590.2,0.50149]
[1762209633865,1.03629,3590.2,3590.1,1.47054813]
[1762209634059,1.0363,3590.1,3590.0,0.99287228]
[1762209634254,1.3148,3590.1,3590.0,0.00214454]
[1762209634466,1.3148,3590.1,3590.0,0.99393916]
[1762209634859,0.8424,3589.8,3589.7,1.35082499]
[1762209635062,0.50164,3589.2,3588.9,8.875]
[1762209635363,0.50164,3589.2,3589.0,0.50164]
[1762209635958,0.50164,3589.2,3589.0,0.0027699]
[1762209635959,0.78014,3589.1,3589.0,0.0027699]
[1762209636155,1.31494,3589.1,3589.0,0.0027699]
[1762209636459,0.3076,3588.6,3587.9,0.50181]
[1762209636665,0.78027,3588.2,3587.9,0.50181]
[1762209637167,0.50177,3588.2,3587.9,0.50181]
[1762209637467,0.00242332,3588.2,3588.0,0.50179]
[1762209637861,0.50178,3588.1,3587.9,40.80334214]
[1762209638366,0.50178,3588.1,3587.9,0.00334214]
[1762209638755,0.2785,3588.0,3587.9,0.00334214]
[1762209638967,0.3076,3586.2,3585.7,2.45934658]
[1762209639270,0.78056,3586.2,3585.6,0.50212]
[1762209639472,0.2785,3586.0,3585.7,40.8]
[1762209639768,0.50209,3585.9,3585.7,40.8]
[1762209639969,0.50198,3586.7,3585.9,0.50208]
[1762209640168,0.2785,3586.0,3585.7,40.80270248]
[1762209640376,0.50204,3586.3,3585.7,41.30481248]
[1762209640576,0.50201,3586.5,3585.9,0.50208]
[1762209640875,0.2785,3586.3,3585.9,0.50208]
[1762209641273,0.50202,3586.4,3585.9,0.50208]
[1762209641570,0.3076,3586.8,3585.7,40.80270248]
[1762209641571,0.2785,3586.3,3586.0,0.50208]
[1762209641977,0.50202,3586.4,3586.0,0.50208]
[1762209642177,0.2785,3586.3,3586.0,0.50208]
[1762209642572,0.50202,3586.4,3586.0,0.50208]
[1762209642772,0.3076,3586.8,3586.4,0.50202]
[1762209642973,0.3076,3586.8,3586.5,0.502]
[1762209643278,0.3076,3587.4,3586.7,0.50197]
[1762209643478,0.50191,3587.2,3586.7,0.50197]
[1762209643775,0.2785,3586.8,3586.7,0.50197]
[1762209643976,0.2785,3586.8,3585.9,1.25523]
[1762209643977,0.2785,3586.8,3586.5,0.502]
[1762209644179,0.2785,3586.6,3586.5,0.502]
[1762209644573,0.50194,3587.0,3586.6,0.50199]
[1762209644769,0.50192,3587.2,3586.6,0.50199]
[1762209644975,0.2785,3587.1,3586.6,0.50199]
[1762209645373,0.50186,3587.6,3586.6,1.25499]
[1762209645676,0.50186,3587.6,3587.2,0.50191]
[1762209645881,0.50185,3587.6,3587.3,0.50189]
[1762209646081,0.3076,3588.0,3587.3,0.50189]
[1762209646281,0.2785,3587.4,3587.3,0.50189]
[1762209646476,0.2785,3587.6,3587.3,0.50189]
[1762209646682,0.50185,3587.7,3587.4,0.50188]
[1762209646895,0.3076,3588.0,3587.4,0.50188]
[1762209646896,0.78036,3587.6,3587.4,0.50188]
[1762209647072,0.78036,3587.6,3587.2,0.5019]
[1762209647275,0.50187,3587.5,3587.2,0.5019]
[1762209648280,0.2785,3587.4,3587.2,0.5019]
[1762209648481,0.78038,3587.4,3586.9,40.8]
[1762209648682,0.50188,3587.4,3587.1,0.50192]
[1762209648983,0.78039,3587.3,3587.1,0.50192]
[1762209649780,0.2785,3587.3,3586.9,40.8]
[1762209650182,0.2785,3587.3,3587.0,0.50194]
[1762209650383,0.2785,3587.3,3587.1,0.50192]
[1762209650785,0.50201,3586.6,3585.7,1.25799248]
[1762209651086,0.2785,3586.6,3586.2,0.50204]
[1762209651286,0.2785,3586.6,3586.3,40.8]
[1762209651486,0.50201,3586.5,3586.3,41.30203]
[1762209651887,0.50201,3586.5,3586.3,0.50203]
[1762209652787,0.50202,3586.4,3586.2,0.50204]
[1762209653179,0.502,3586.6,3586.3,0.50203]
[1762209653380,0.2785,3586.5,3586.3,0.50203]
[1762209653790,0.50201,3586.5,3586.3,0.50203]
[1762209654284,0.3705,3587.4,3585.9,42.05524]